fUSD/lending_fUSD_20240915
["ID","MTS","AMOUNT","RATE_DAILY","PERIOD"]
[338194280,1726381855219,-3197.2,0.00013266,2]
[338194281,1726381855230,-5629.2,0.00013266,2]
[338194282,1726381855239,-1826.78,0.00013266,2]
[338194283,1726381855322,-151.0,0.00013266,2]
[338194284,1726381855333,-3151.69,0.00013266,2]
[338194285,1726381855342,-1403.46,0.00013266,2]
[338194286,1726381855351,-1403.46,0.00013266,2]
[338194287,1726381855361,-4867.82,0.00013266,2]
[338194288,1726381855370,-500.0,0.00013266,2]
[338194289,1726381855379,-2463.48,0.00013266,2]
[338194290,1726381855388,-500.0,0.00013266,2]
[338194291,1726381855397,-606.99,0.00013266,2]
[338194292,1726381855406,-500.0,0.00013266,2]
[338194293,1726381855416,-986.94,0.00013266,2]
[338194294,1726381855425,-500.0,0.00013266,2]
[338194295,1726381855434,-2187.3,0.00013266,2]
[338194296,1726381855443,-500.0,0.00013266,2]
[338194297,1726381855452,-500.0,0.00013266,2]
[338194298,1726381855461,-500.0,0.00013266,2]
[338194299,1726381855470,-500.0,0.00013266,2]
[338194300,1726381855480,-236.55608068,0.00013266,2]
[338194301,1726381855489,-500.0,0.00013266,2]
[338194302,1726381855498,-3184.16,0.00013266,2]
[338194303,1726381855508,-500.0,0.00013266,2]
[338194304,1726381855517,-500.0,0.00013266,2]
[338194305,1726381855526,-500.0,0.00013266,2]
[338194306,1726381855535,-500.0,0.00013266,2]
[338194307,1726381855545,-500.0,0.00013266,2]
[338194308,1726381855554,-500.0,0.00013266,2]
[338194309,1726381855564,-500.0,0.00013266,2]
[338194310,1726381855573,-901.1,0.00013266,2]
[338194311,1726381855583,-601.81,0.00013266,2]
[338194312,1726381855592,-3571.01,0.00013266,2]
[338194313,1726381855602,-500.0,0.00013266,2]
[338194314,1726381855611,-2374.74,0.00013266,2]
[338194315,1726381855620,-500.0,0.00013266,2]
[338194316,1726381855630,-599.49,0.00013266,2]
[338194317,1726381855639,-500.0,0.00013266,2]
[338194318,1726381855650,-700.07,0.00013266,2]
[338194319,1726381855659,-797.91,0.00013266,2]
[338194320,1726381855669,-622.59,0.00013266,2]
[338194321,1726381855678,-500.0,0.00013266,2]
[338194322,1726381855688,-2358.74,0.00013266,2]
[338194323,1726381855697,-500.0,0.00013266,2]
[338194324,1726381855706,-500.0,0.00013266,2]
[338194325,1726381855716,-256.74068539,0.00013266,2]
[338194326,1726381855725,-565.96,0.00013266,2]
[338194327,1726381855735,-500.0,0.00013266,2]
[338194328,1726381855744,-151.515276,0.00013266,2]
[338194329,1726381855754,-500.0,0.00013266,2]
[338194330,1726381855763,-500.0,0.00013266,2]
[338194331,1726381855773,-1461.08,0.00013266,2]
[338194332,1726381855783,-500.0,0.00013266,2]
[338194333,1726381855792,-1636.78,0.00013266,2]
[338194334,1726381855802,-1128.35,0.00013266,2]
[338194335,1726381855812,-151.0,0.00013266,2]
[338194336,1726381855822,-2130.78,0.00013266,2]
[338194337,1726381855832,-1654.54,0.00013266,2]
[338194338,1726381855842,-906.33,0.00013266,2]
[338194339,1726381855852,-3615.0,0.00013266,2]
[338194340,1726381855862,-500.0,0.00013266,2]
[338194341,1726381855871,-1115.12,0.00013266,2]
[338194342,1726381855881,-500.0,0.00013266,2]
[338194343,1726381855890,-500.0,0.00013266,2]
[338194344,1726381855900,-1016.81,0.00013266,2]
[338194345,1726381855909,-500.0,0.00013266,2]
[338194346,1726381855919,-1050.91,0.00013266,2]
[338194347,1726381855928,-1745.05,0.00013266,2]
[338194348,1726381855938,-1305.86,0.00013266,2]
[338194349,1726381855948,-500.0,0.00013266,2]
[338194350,1726381855958,-3162.24,0.00013266,2]
[338194351,1726381855968,-1606.05,0.00013266,2]
[338194352,1726381855978,-2458.75,0.00013266,2]
[338194353,1726381855988,-520.7,0.00013266,2]
[338194354,1726381855997,-500.0,0.00013266,2]
[338194355,1726381856007,-500.0,0.00013266,2]
[338194356,1726381856017,-1813.74,0.00013266,2]
[338194357,1726381856029,-500.0,0.00013266,2]
[338194358,1726381856044,-500.0,0.00013266,2]
[338194359,1726381856053,-500.0,0.00013266,2]
[338194360,1726381856064,-500.0,0.00013266,2]
[338194361,1726381856074,-500.0,0.00013266,2]
[338194362,1726381856084,-500.0,0.00013266,2]
[338194363,1726381856094,-500.0,0.00013266,2]
[338194364,1726381856104,-500.0,0.00013266,2]
[338194365,1726381856114,-500.0,0.00013266,2]
[338194366,1726381856124,-500.0,0.00013266,2]
[338194367,1726381856133,-500.0,0.00013266,2]
[338194368,1726381856144,-1237.42,0.00013266,2]
[338194369,1726381856153,-2059.01,0.00013266,2]
[338194370,1726381856163,-500.0,0.00013266,2]
[338194371,1726381856173,-1507.82,0.00013266,2]
[338194372,1726381856182,-500.0,0.00013266,2]
[338194373,1726381856191,-1090.31,0.00013266,2]
[338194374,1726381856201,-500.0,0.00013266,2]
[338194375,1726381856211,-500.0,0.00013266,2]
[338194376,1726381856220,-500.0,0.00013266,2]
[338194377,1726381856230,-1077.04,0.00013266,2]
[338194378,1726381856239,-1047.06,0.00013266,2]
[338194379,1726381856249,-500.0,0.00013266,2]
[338194380,1726381856259,-500.0,0.00013266,2]
[338194381,1726381856268,-500.0,0.00013266,2]
[338194382,1726381856278,-500.0,0.00013266,2]
[338194383,1726381856287,-1253.37,0.00013266,2]
[338194384,1726381856297,-1804.4,0.00013266,2]
[338194385,1726381856306,-1591.55,0.00013266,2]
[338194386,1726381856316,-500.0,0.00013266,2]
[338194387,1726381856326,-500.0,0.00013266,2]
[338194388,1726381856335,-2259.19,0.00013266,2]
[338194389,1726381856345,-500.0,0.00013266,2]
[338194390,1726381856354,-500.0,0.00013266,2]
[338194391,1726381856364,-500.0,0.00013266,2]
[338194392,1726381856373,-500.0,0.00013266,2]
[338194393,1726381856383,-500.0,0.00013266,2]
[338194394,1726381856392,-2367.3,0.00013266,2]
[338194395,1726381856401,-1000.83,0.00013266,2]
[338194396,1726381856411,-500.0,0.00013266,2]
[338194397,1726381856420,-500.0,0.00013266,2]
[338194398,1726381856429,-500.0,0.00013266,2]
[338194399,1726381856439,-776.8,0.00013266,2]
[338194400,1726381856448,-500.0,0.00013266,2]
[338194401,1726381856458,-500.0,0.00013266,2]
[338194402,1726381856467,-1062.52,0.00013266,2]
[338194403,1726381856476,-3155.77,0.00013266,2]
[338194404,1726381856486,-500.0,0.00013266,2]
[338194405,1726381856496,-500.0,0.00013266,2]
[338194406,1726381856505,-500.0,0.00013266,2]
[338194407,1726381856515,-1621.74,0.00013266,2]
[338194408,1726381856524,-621.07,0.00013266,2]
[338194409,1726381856534,-500.0,0.00013266,2]
[338194410,1726381856543,-850.76,0.00013266,2]
[338194411,1726381856553,-500.0,0.00013266,2]
[338194412,1726381856563,-2629.31,0.00013266,2]
[338194413,1726381856572,-577.56,0.00013266,2]
[338194414,1726381856582,-500.0,0.00013266,2]
[338194415,1726381856591,-500.0,0.00013266,2]
[338194416,1726381856601,-500.0,0.00013266,2]
[338194417,1726381856611,-500.0,0.00013266,2]
[338194418,1726381856621,-1874.33,0.00013266,2]
[338194419,1726381856630,-500.0,0.00013266,2]
[338194420,1726381856640,-1584.28,0.00013266,2]
[338194421,1726381856649,-567.23,0.00013266,2]
[338194422,1726381856659,-840.95,0.00013266,2]
[338194423,1726381856668,-865.73,0.00013266,2]
[338194424,1726381856678,-500.0,0.00013266,2]
[338194425,1726381856687,-1418.01,0.00013266,2]
[338194426,1726381856696,-1542.96,0.00013266,2]
[338194427,1726381856706,-500.0,0.00013266,2]
[338194428,1726381856715,-500.0,0.00013266,2]
[338194429,1726381856725,-500.0,0.00013266,2]
[338194430,1726381856734,-500.0,0.00013266,2]
[338194431,1726381856744,-254.60264888,0.00013266,2]
[338194432,1726381856753,-2051.78,0.00013266,2]
[338194433,1726381856763,-891.99,0.00013266,2]
[338194434,1726381856773,-500.0,0.00013266,2]
[338194435,1726381856782,-2897.32,0.00013266,2]
[338194436,1726381856791,-1640.66,0.00013266,2]
[338194437,1726381856800,-500.0,0.00013266,2]
[338194438,1726381856810,-1770.93,0.00013266,2]
[338194439,1726381856819,-500.0,0.00013266,2]
[338194440,1726381856829,-1656.38,0.00013266,2]
[338194441,1726381856839,-500.0,0.00013266,2]
[338194442,1726381856848,-500.0,0.00013266,2]
[338194443,1726381856858,-1210.36,0.00013266,2]
[338194444,1726381856868,-3342.01,0.00013266,2]
[338194445,1726381856877,-500.0,0.00013266,2]
[338194446,1726381856887,-1890.22,0.00013266,2]
[338194447,1726381856896,-500.0,0.00013266,2]
[338194448,1726381856905,-2621.53,0.00013266,2]
[338194449,1726381856915,-1539.83,0.00013266,2]
[338194450,1726381856924,-500.0,0.00013266,2]
[338194451,1726381856933,-760.01,0.00013266,2]
[338194452,1726381856943,-2751.15,0.00013266,2]
[338194453,1726381856952,-1538.07,0.00013266,2]
[338194454,1726381856961,-784.66,0.00013266,2]
[338194455,1726381856971,-1008.53,0.00013266,2]
[338194456,1726381856980,-1199.07,0.00013266,2]
[338194457,1726381856990,-2397.19,0.00013266,2]
[338194458,1726381857000,-3153.65,0.00013266,2]
[338194459,1726381857009,-1111.77,0.00013266,2]
[338194460,1726381857018,-1735.23,0.00013266,2]
[338194461,1726381857031,-500.0,0.00013266,2]
[338194462,1726381857041,-1974.64,0.00013266,2]
[338194463,1726381857051,-3243.42,0.00013266,2]
[338194464,1726381857061,-500.0,0.00013266,2]
[338194465,1726381857071,-660.68,0.00013266,2]
[338194466,1726381857081,-500.0,0.00013266,2]
[338194467,1726381857090,-707.41,0.00013266,2]
[338194468,1726381857100,-1886.27,0.00013266,2]
[338194469,1726381857109,-1792.41,0.00013266,2]
[338194470,1726381857119,-500.0,0.00013266,2]
[338194471,1726381857128,-1833.13,0.00013266,2]
[338194472,1726381857137,-500.0,0.00013266,2]
[338194473,1726381857146,-866.59,0.00013266,2]
[338194474,1726381857155,-2965.3,0.00013266,2]
[338194475,1726381857164,-1937.93,0.00013266,2]
[338194476,1726381857174,-1842.75,0.00013266,2]
[338194477,1726381857183,-900.6,0.00013266,2]
[338194478,1726381857193,-1813.58,0.00013266,2]
[338194479,1726381857203,-500.0,0.00013266,2]
[338194480,1726381857212,-739.46,0.00013266,2]
[338194481,1726381857222,-2422.23,0.00013266,2]
[338194482,1726381857232,-585.5,0.00013266,2]
[338194483,1726381857242,-500.0,0.00013266,2]
[338194484,1726381857252,-500.0,0.00013266,2]
[338194485,1726381857262,-500.0,0.00013266,2]
[338194486,1726381857271,-1897.46,0.00013266,2]
[338194487,1726381857281,-1148.73,0.00013266,2]
[338194488,1726381857291,-500.0,0.00013266,2]
[338194489,1726381857301,-500.0,0.00013266,2]
[338194490,1726381857310,-688.4,0.00013266,2]
[338194491,1726381857320,-1743.16,0.00013266,2]
[338194492,1726381857330,-500.0,0.00013266,2]
[338194493,1726381857340,-1943.11,0.00013266,2]
[338194494,1726381857350,-3111.85,0.00013266,2]
[338194495,1726381857360,-1998.21,0.00013266,2]
[338194496,1726381857370,-500.0,0.00013266,2]
[338194497,1726381857379,-500.0,0.00013266,2]
[338194498,1726381857390,-643.06,0.00013266,2]
[338194499,1726381857400,-788.13,0.00013266,2]
[338194500,1726381857410,-1035.32,0.00013266,2]
[338194501,1726381857420,-500.0,0.00013266,2]
[338194502,1726381857431,-535.73,0.00013266,2]
[338194503,1726381857441,-929.51,0.00013266,2]
[338194504,1726381857451,-1409.16,0.00013266,2]
[338194505,1726381857461,-500.0,0.00013266,2]
[338194506,1726381857471,-500.0,0.00013266,2]
[338194507,1726381857481,-1670.36,0.00013266,2]
[338194508,1726381857491,-500.0,0.00013266,2]
[338194509,1726381857501,-500.0,0.00013266,2]
[338194510,1726381857510,-1624.31,0.00013266,2]
[338194511,1726381857520,-1155.85,0.00013266,2]
[338194512,1726381857530,-732.29,0.00013266,2]
[338194513,1726381857540,-500.0,0.00013266,2]
[338194514,1726381857550,-500.0,0.00013266,2]
[338194515,1726381857559,-1466.93,0.00013266,2]
[338194516,1726381857569,-500.0,0.00013266,2]
[338194517,1726381857579,-1697.42,0.00013266,2]
[338194518,1726381857589,-1247.94,0.00013266,2]
[338194519,1726381857599,-1845.42,0.00013266,2]
[338194520,1726381857609,-500.0,0.00013266,2]
[338194521,1726381857619,-682.96,0.00013266,2]
[338194522,1726381857628,-1959.4,0.00013266,2]
[338194523,1726381857638,-528.66,0.00013266,2]
[338194524,1726381857648,-741.27,0.00013266,2]
[338194525,1726381857658,-1153.75,0.00013266,2]
[338194526,1726381857667,-577.33,0.00013266,2]
[338194527,1726381857677,-1042.42,0.00013266,2]
[338194528,1726381857687,-2551.04,0.00013266,2]
[338194529,1726381857697,-508.64,0.00013266,2]
[338194530,1726381857706,-500.0,0.00013266,2]
[338194531,1726381857716,-536.84,0.00013266,2]
[338194532,1726381857726,-572.89,0.00013266,2]
[338194533,1726381857736,-500.0,0.00013266,2]
[338194534,1726381857746,-2167.58,0.00013266,2]
[338194535,1726381857755,-1228.54,0.00013266,2]
[338194536,1726381857765,-2336.37,0.00013266,2]
[338194537,1726381857775,-1662.25,0.00013266,2]
[338194538,1726381857784,-1363.75,0.00013266,2]
[338194539,1726381857794,-1013.04,0.00013266,2]
[338194540,1726381857803,-703.32,0.00013266,2]
[338194541,1726381857814,-500.0,0.00013266,2]
[338194542,1726381857824,-3650.05,0.00013266,2]
[338194543,1726381857834,-698.51,0.00013266,2]
[338194544,1726381857844,-1161.27,0.00013266,2]
[338194545,1726381857854,-526.83,0.00013266,2]
[338194546,1726381857863,-500.0,0.00013266,2]
[338194547,1726381857873,-500.0,0.00013266,2]
[338194548,1726381857883,-500.0,0.00013267,2]
[338194549,1726381857892,-500.0,0.00013267,2]
[338194550,1726381857901,-500.0,0.00013267,2]
[338194551,1726381857911,-500.0,0.00013267,2]
[338194552,1726381857921,-500.0,0.00013267,2]
[338194553,1726381857930,-500.0,0.00013267,2]
[338194554,1726381857940,-500.0,0.00013267,2]
[338194555,1726381857949,-500.0,0.00013267,2]
[338194556,1726381857959,-500.0,0.00013267,2]
[338194557,1726381857968,-606.22999984,0.00013267,2]
[338194558,1726381857978,-500.0,0.00013267,2]
[338194559,1726381857987,-500.0,0.00013267,2]
[338194560,1726381857998,-500.0,0.00013267,2]
[338194561,1726381858007,-500.0,0.00013267,2]
[338194562,1726381858017,-199.57445966,0.00013267,2]
[338194563,1726381858030,-500.0,0.00013267,2]
[338194564,1726381858040,-500.0,0.00013267,2]
[338194565,1726381858050,-500.0,0.00013267,2]
[338194566,1726381858061,-500.0,0.00013267,2]
[338194567,1726381858072,-500.0,0.00013267,2]
[338194568,1726381858081,-500.0,0.00013267,2]
[338194569,1726381858091,-500.0,0.00013267,2]
[338194570,1726381858102,-500.0,0.00013267,2]
[338194571,1726381858112,-500.0,0.00013267,2]
[338194572,1726381858122,-500.0,0.00013267,2]
[338194573,1726381858132,-1068.66,0.00013267,2]
[338194574,1726381858141,-500.0,0.00013267,2]
[338194575,1726381858151,-500.0,0.00013267,2]
[338194576,1726381858160,-2396.84,0.00013267,2]
[338194577,1726381858170,-500.0,0.00013267,2]
[338194578,1726381858180,-674.85,0.00013267,2]
[338194579,1726381858191,-500.0,0.00013267,2]
[338194580,1726381858200,-1476.38,0.00013267,2]
[338194581,1726381858210,-163.77757114,0.00013267,2]
[338194582,1726381858219,-500.0,0.00013267,2]
[338194583,1726381858229,-2395.98,0.00013267,2]
[338194584,1726381858239,-500.0,0.00013267,2]
[338194585,1726381858249,-500.0,0.00013267,2]
[338194586,1726381858258,-534.62,0.00013267,2]
[338194587,1726381858268,-500.0,0.00013267,2]
[338194588,1726381858278,-500.0,0.00013267,2]
[338194589,1726381858288,-410.45669147,0.00013267,2]
[338194590,1726381858298,-399.16910861,0.00013267,2]
[338194591,1726381858307,-528.35,0.00013267,2]
[338194592,1726381858318,-500.0,0.00013267,2]
[338194593,1726381858328,-500.0,0.00013267,2]
[338194594,1726381858339,-500.0,0.00013267,2]
[338194595,1726381858350,-500.0,0.00013267,2]
[338194596,1726381858360,-1193.36,0.00013267,2]
[338194597,1726381858370,-500.0,0.00013267,2]
[338194598,1726381858379,-2193.97,0.00013267,2]
[338194599,1726381858388,-462.32443154,0.00013267,2]
[338194600,1726381858398,-500.0,0.00013267,2]
[338194601,1726381858407,-500.0,0.00013267,2]
[338194602,1726381858417,-500.0,0.00013267,2]
[338194603,1726381858426,-1000.0,0.00013267,2]
[338194604,1726381858436,-500.0,0.00013267,2]
[338194605,1726381858445,-500.0,0.00013267,2]
[338194606,1726381858455,-500.0,0.00013267,2]
[338194607,1726381858464,-2885.28,0.00013267,2]
[338194608,1726381858474,-1180.56,0.00013267,2]
[338194609,1726381858483,-500.0,0.00013267,2]
[338194610,1726381858493,-1947.13,0.00013267,2]
[338194611,1726381858503,-620.38,0.00013267,2]
[338194612,1726381858512,-500.0,0.00013267,2]
[338194613,1726381858521,-2164.32,0.00013267,2]
[338194614,1726381858531,-500.0,0.00013267,2]
[338194615,1726381858542,-500.0,0.00013267,2]
[338194616,1726381858553,-500.0,0.00013267,2]
[338194617,1726381858562,-500.0,0.00013267,2]
[338194618,1726381858571,-500.0,0.00013267,2]
[338194619,1726381858581,-600.49,0.00013267,2]
[338194620,1726381858594,-500.0,0.00013267,2]
[338194621,1726381858604,-1098.27,0.00013267,2]
[338194622,1726381858614,-500.0,0.00013267,2]
[338194623,1726381858625,-500.0,0.00013267,2]
[338194624,1726381858634,-500.0,0.00013267,2]
[338194625,1726381858644,-500.0,0.00013267,2]
[338194626,1726381858654,-911.32,0.00013267,2]
[338194627,1726381858663,-1004.03,0.00013267,2]
[338194628,1726381858672,-665.88,0.00013267,2]
[338194629,1726381858681,-500.0,0.00013267,2]
[338194630,1726381858691,-1742.25,0.00013267,2]
[338194631,1726381858700,-500.0,0.00013267,2]
[338194632,1726381858709,-527.18,0.00013267,2]
[338194633,1726381858719,-751.13,0.00013267,2]
[338194634,1726381858730,-500.0,0.00013267,2]
[338194635,1726381858741,-374.88566616,0.00013267,2]
[338194636,1726381858751,-803.75,0.00013267,2]
[338194637,1726381858761,-500.0,0.00013267,2]
[338194638,1726381858770,-1063.78,0.00013267,2]
[338194639,1726381858780,-500.0,0.00013267,2]
[338194640,1726381858789,-500.0,0.00013267,2]
[338194641,1726381858798,-535.43,0.00013267,2]
[338194642,1726381858808,-500.0,0.00013267,2]
[338194643,1726381858818,-334.95892635,0.00013267,2]
[338194644,1726381858827,-953.78,0.00013267,2]
[338194645,1726381858836,-500.0,0.00013267,2]
[338194646,1726381858846,-1390.58,0.00013267,2]
[338194647,1726381858855,-500.0,0.00013267,2]
[338194648,1726381858864,-835.87,0.00013267,2]
[338194649,1726381858874,-500.0,0.00013267,2]
[338194650,1726381858883,-1570.38,0.00013267,2]
[338194651,1726381858893,-933.37,0.00013267,2]
[338194652,1726381858902,-500.0,0.00013267,2]
[338194653,1726381858912,-1630.74,0.00013267,2]
[338194654,1726381858921,-528.77,0.00013267,2]
[338194655,1726381858930,-500.0,0.00013267,2]
[338194656,1726381858940,-500.0,0.00013267,2]
[338194657,1726381858949,-841.99,0.00013267,2]
[338194658,1726381858958,-500.0,0.00013267,2]
[338194659,1726381858968,-500.0,0.00013267,2]
[338194660,1726381858977,-1151.06,0.00013267,2]
[338194661,1726381858987,-1343.2,0.00013267,2]
[338194662,1726381858997,-500.0,0.00013267,2]
[338194663,1726381859007,-530.0,0.00013267,2]
[338194664,1726381859016,-500.0,0.00013267,2]
[338194665,1726381859027,-500.0,0.00013267,2]
[338194666,1726381859037,-544.54,0.00013267,2]
[338194667,1726381859046,-1448.93,0.00013267,2]
[338194668,1726381859056,-1331.02,0.00013267,2]
[338194669,1726381859066,-500.0,0.00013267,2]
[338194670,1726381859076,-500.0,0.00013267,2]
[338194671,1726381859086,-500.0,0.00013267,2]
[338194672,1726381859096,-1371.58,0.00013267,2]
[338194673,1726381859105,-964.06,0.00013267,2]
[338194674,1726381859115,-2962.74,0.00013267,2]
[338194675,1726381859125,-500.0,0.00013267,2]
[338194676,1726381859134,-500.0,0.00013267,2]
[338194677,1726381859144,-1809.86,0.00013267,2]
[338194678,1726381859153,-500.0,0.00013267,2]
[338194679,1726381859163,-1367.8,0.00013267,2]
[338194680,1726381859174,-1107.11,0.00013267,2]
[338194681,1726381859183,-500.0,0.00013267,2]
[338194682,1726381859193,-500.0,0.00013267,2]
[338194683,1726381859203,-500.0,0.00013267,2]
[338194684,1726381859212,-500.0,0.00013267,2]
[338194685,1726381859222,-500.0,0.00013267,2]
[338194686,1726381859232,-500.0,0.00013267,2]
[338194687,1726381859242,-830.62,0.00013267,2]
[338194688,1726381859252,-514.96451564,0.00013267,2]
[338194689,1726381859262,-1521.72,0.00013267,2]
[338194690,1726381859271,-500.0,0.00013267,2]
[338194691,1726381859281,-500.0,0.00013267,2]
[338194692,1726381859291,-500.0,0.00013267,2]
[338194693,1726381859300,-500.0,0.00013267,2]
[338194694,1726381859310,-1318.85,0.00013267,2]
[338194695,1726381859320,-647.66,0.00013267,2]
[338194696,1726381859330,-500.0,0.00013267,2]
[338194697,1726381859340,-500.0,0.00013267,2]
[338194698,1726381859349,-500.0,0.00013267,2]
[338194699,1726381859543,-500.0,0.00013267,2]
[338194700,1726381859579,-500.0,0.00013267,2]
[338194701,1726381859590,-2166.25,0.00013267,2]
[338194702,1726381859599,-500.0,0.00013267,2]
[338194703,1726381859609,-500.0,0.00013267,2]
[338194704,1726381859618,-500.0,0.00013267,2]
[338194705,1726381859627,-500.0,0.00013267,2]
[338194706,1726381859637,-500.0,0.00013267,2]
[338194707,1726381859646,-1774.88,0.00013267,2]
[338194708,1726381859655,-972.55,0.00013267,2]
[338194709,1726381859664,-456.28762355,0.00013267,2]
[338194710,1726381859683,-1314.05,0.00013267,2]
[338194711,1726381859694,-2095.31,0.00013267,2]
[338194712,1726381859704,-500.0,0.00013267,2]
[338194713,1726381859714,-702.05,0.00013267,2]
[338194714,1726381859724,-500.0,0.00013267,2]
[338194715,1726381859734,-500.0,0.00013267,2]
[338194716,1726381859744,-500.0,0.00013267,2]
[338194717,1726381859753,-2013.23,0.00013267,2]
[338194718,1726381859763,-825.07,0.00013267,2]
[338194719,1726381859773,-191.998796,0.00013267,2]
[338194720,1726381859783,-500.0,0.00013267,2]
[338194721,1726381859793,-2411.19,0.00013267,2]
[338194722,1726381859802,-1403.46,0.00013267,2]
[338194723,1726381859812,-500.0,0.00013267,2]
[338194724,1726381859823,-500.0,0.00013267,2]
[338194725,1726381859833,-1811.7,0.00013267,2]
[338194726,1726381859843,-500.0,0.00013267,2]
[338194727,1726381859852,-500.0,0.00013267,2]
[338194728,1726381859862,-2008.95,0.00013267,2]
[338194729,1726381859872,-500.0,0.00013267,2]
[338194730,1726381859882,-4530.5,0.00013267,2]
[338194731,1726381859891,-500.0,0.00013267,2]
[338194732,1726381859901,-1011.47,0.00013267,2]
[338194733,1726381859911,-500.0,0.00013267,2]
[338194734,1726381859920,-1086.44,0.00013267,2]
[338194735,1726381859930,-1287.06,0.00013267,2]
[338194736,1726381859940,-4693.61,0.00013267,2]
[338194737,1726381859951,-591.99,0.00013267,2]
[338194738,1726381859962,-883.11,0.00013267,2]
[338194739,1726381859971,-500.0,0.00013267,2]
[338194740,1726381859981,-500.0,0.00013267,2]
[338194741,1726381859991,-2585.46,0.00013267,2]
[338194742,1726381860001,-549.37,0.00013267,2]
[338194743,1726381860011,-500.0,0.00013267,2]
[338194744,1726381860021,-500.0,0.00013267,2]
[338194745,1726381860035,-1516.16,0.00013267,2]
[338194746,1726381860045,-1197.17,0.00013267,2]
[338194747,1726381860056,-500.0,0.00013267,2]
[338194748,1726381860068,-500.0,0.00013267,2]
[338194749,1726381860080,-580.84741788,0.00013267,2]
[338194750,1726381860090,-564.11,0.00013267,2]
[338194751,1726381860100,-500.0,0.00013267,2]
[338194752,1726381860109,-1898.25,0.00013267,2]
[338194753,1726381860120,-500.0,0.00013267,2]
[338194754,1726381860130,-500.0,0.00013267,2]
[338194755,1726381860139,-500.0,0.00013267,2]
[338194756,1726381860149,-500.0,0.00013267,2]
[338194757,1726381860160,-2218.48,0.00013267,2]
[338194758,1726381860170,-500.0,0.00013267,2]
[338194759,1726381860180,-500.0,0.00013267,2]
[338194760,1726381860189,-500.0,0.00013267,2]
[338194761,1726381860200,-703.37,0.00013267,2]
[338194762,1726381860210,-500.0,0.00013267,2]
[338194763,1726381860220,-2680.39,0.00013267,2]
[338194764,1726381860230,-754.25,0.00013267,2]
[338194765,1726381860239,-500.0,0.00013267,2]
[338194766,1726381860249,-2592.96,0.00013267,2]
[338194767,1726381860259,-2186.4,0.00013267,2]
[338194768,1726381860269,-500.0,0.00013267,2]
[338194769,1726381860279,-500.0,0.00013267,2]
[338194770,1726381860289,-500.0,0.00013267,2]
[338194771,1726381860299,-500.0,0.00013267,2]
[338194772,1726381860309,-500.0,0.00013267,2]
[338194773,1726381860319,-1160.35,0.00013267,2]
[338194774,1726381860329,-307.57494789,0.00013267,2]
[338194775,1726381860339,-731.33,0.00013267,2]
[338194776,1726381860349,-500.0,0.00013267,2]
[338194777,1726381860359,-1085.1,0.00013267,2]
[338194778,1726381860368,-500.0,0.00013267,2]
[338194779,1726381860378,-500.0,0.00013267,2]